bitfinex/quotes_ETHUSD_20250323
["timestamp","ask_amount","ask_price","bid_price","bid_amount"]
[1742734138118,5.77641,2013.0,2012.8,0.41402251]
[1742734138421,1.537087,2012.9,2012.5,9.9376]
[1742734138644,5.77641,2013.0,2012.6,0.41455792]
[1742734139270,10.7443,2013.0,2012.6,0.41455792]
[1742734139767,4.96802,2012.9,2012.6,0.41455792]
[1742734145268,5.77641,2013.0,2012.6,5.38316792]
[1742734145475,10.7443,2013.0,2012.6,5.38316792]
[1742734146174,10.74423,2013.0,2012.6,5.38316792]
[1742734146381,5.77641,2013.0,2012.6,5.38316792]
[1742734146873,5.77641,2013.0,2012.7,4.9684]
[1742734147063,5.77641,2013.0,2012.8,0.41396876]
[1742734147265,7.41132231,2013.0,2012.8,0.41396876]
[1742734148077,5.77641,2013.0,2012.8,0.41396876]
[1742734149379,0.8087,2013.0,2012.8,0.41396876]
[1742734150779,4.96775,2013.0,2012.8,0.41396876]
[1742734150976,0.8032,2012.9,2012.8,0.41396876]
[1742734151175,10.73929,2012.9,2012.5,4.96892]
[1742734151684,4.96823,2012.8,2012.6,0.41423543]
[1742734152080,4.96845,2012.7,2012.6,0.41423543]
[1742734152290,4.96919,2012.4,2012.3,26.271]
[1742734152485,0.8032,2012.4,2012.3,26.68603875]
[1742734153351,5.77239,2012.4,2012.3,26.68603875]
[1742734153994,5.77239,2012.4,2012.3,0.41503875]
[1742734154198,6.84653,2012.4,2012.3,0.41503875]
[1742734154699,4.96953,2012.3,2011.9,9.91371]
[1742734154867,4.96953,2012.3,2012.0,0.41584231]
[1742734156068,9.93918,2012.3,2012.0,0.41584231]
[1742734156262,4.96953,2012.3,2012.0,0.41584231]
[1742734156467,4.96969,2012.2,2012.0,0.41584231]
[1742734159615,4.96969,2012.2,2011.8,9.5976]
[1742734159777,4.96969,2012.2,2012.1,0.41681101]
[1742734159979,4.96969,2012.2,2011.8,9.5976]
[1742734160196,4.96969,2012.2,2012.1,0.41681101]
[1742734160398,6.151338,2012.2,2011.8,9.5976]
[1742734160680,4.96969,2012.2,2011.8,9.5976]
[1742734161027,4.96969,2012.2,2011.9,0.4173468]
[1742734165414,0.8032,2012.4,2012.0,0.3163]
[1742734165710,4.96905,2012.5,2012.1,5.38836901]
[1742734165916,9.93821,2012.5,2012.1,5.38836901]
[1742734166814,4.96919,2012.4,2012.1,5.38836901]
[1742734167011,4.96905,2012.5,2012.1,5.38831901]
[1742734167317,9.93821,2012.5,2012.1,5.38831901]
[1742734167480,4.96905,2012.5,2012.2,4.96964]
[1742734167822,0.7542,2012.6,2012.3,5.38742333]
[1742734168113,5.72254,2012.8,2012.4,4.96918]
[1742734168307,10.69098,2012.8,2012.5,0.41756775]
[1742734168726,5.72289,2012.6,2012.5,0.41756775]
[1742734168900,6.89403793,2012.6,2012.2,4.96968]
[1742734169230,4.96898,2012.5,2012.3,0.41810333]
[1742734169601,4.96898,2012.5,2012.1,9.59774]
[1742734169799,4.96898,2012.5,2012.4,0.41783553]
[1742734169999,4.96952,2012.3,2012.1,4.628]
[1742734170304,5.76612,2012.3,2012.1,4.628]
[1742734170840,0.7966,2012.3,2012.1,4.628]
[1742734173441,5.76608,2012.3,2012.1,4.628]
[1742734174149,5.76608,2012.3,2011.9,4.97022]
[1742734175345,4.96936,2012.4,2012.1,5.28619]
[1742734175851,4.96936,2012.4,2012.1,4.96989]
[1742734177575,14.5657,2012.6,2012.2,4.96968]
[1742734178079,0.7618,2012.4,2012.1,4.9697]
[1742734178483,5.73101,2012.4,2012.0,4.97017]
[1742734179385,5.73101,2012.4,2012.0,4.97002]
[1742734182053,0.7618,2012.4,2012.0,4.97015]
[1742734182243,10.35854,2012.6,2012.2,4.96963]
[1742734183677,15.32746,2012.6,2012.3,0.41713543]
[1742734183877,4.96895,2012.5,2012.3,0.41713543]
[1742734185186,15.32746,2012.6,2012.3,0.41713543]
[1742734185671,15.32735,2012.6,2012.3,0.41713543]
[1742734186282,10.35854,2012.6,2012.3,0.41713543]
[1742734189792,12.29324993,2012.6,2012.3,0.41713543]
[1742734190367,5.73054,2012.6,2012.3,0.41713543]
[1742734192091,4.96905,2012.5,2012.3,0.41713543]
[1742734192284,0.8278,2012.4,2012.1,4.96991]
[1742734192473,0.8278,2012.4,2012.2,0.41756451]
[1742734192789,0.8278,2012.4,2012.1,4.96991]
[1742734192988,0.8278,2012.4,2012.3,0.41729668]
[1742734193193,0.8278,2012.4,2012.2,0.41756451]
[1742734193365,0.8278,2012.4,2012.3,0.41729668]
[1742734193793,0.8278,2012.4,2012.1,4.96991]
[1742734193998,0.8278,2012.4,2012.3,0.41729668]
[1742734194498,5.79699,2012.4,2012.0,4.9701]
[1742734194792,5.79699,2012.4,2012.1,5.38774236]
[1742734195559,5.79699,2012.4,2012.1,0.41783236]
[1742734196494,10.76638,2012.4,2012.1,0.41783236]
[1742734196698,5.79699,2012.4,2012.1,0.41783236]
[1742734199406,10.7664,2012.4,2012.1,0.41783236]
[1742734200071,4.96948,2012.3,2012.1,0.41783236]
[1742734200583,4.96948,2012.3,2011.9,4.97034]
[1742734200793,9.9391,2012.3,2012.2,0.41780651]
[1742734200971,9.9391,2012.3,2011.9,4.97034]
[1742734201172,12.9391,2012.3,2012.2,0.41780651]
[1742734201372,9.9391,2012.3,2011.9,4.97034]
[1742734201600,12.9391,2012.3,2012.2,0.41780651]
[1742734201782,14.31579,2012.3,2011.9,4.97034]
[1742734202106,9.34617,2012.3,2011.9,4.97034]
[1742734202305,9.34617,2012.3,2012.0,0.41834224]
[1742734203313,7.96948,2012.3,2012.0,0.41834224]
[1742734204075,12.93912,2012.3,2012.0,0.41834224]
[1742734204275,5.78508,2012.2,2012.0,0.41834224]
[1742734204588,10.75497,2012.2,2011.8,4.97065]
[1742734204903,10.75494,2012.2,2011.8,4.97065]
[1742734205103,10.75494,2012.2,2011.9,0.41861015]
[1742734205303,7.160574,2012.2,2011.9,0.41861015]
[1742734206006,12.130454,2012.2,2011.9,0.41861015]
[1742734207118,5.78508,2012.2,2011.9,0.41861015]
[1742734209397,4.96995,2012.1,2011.9,0.41861015]
[1742734209594,4.96995,2012.1,2011.7,9.59784]
[1742734209804,4.96995,2012.1,2012.0,0.41861116]
[1742734210311,4.96995,2012.1,2011.7,9.59784]
[1742734210486,4.96995,2012.1,2011.8,0.419147]
[1742734211104,5.78503,2012.2,2011.8,5.389797]
[1742734211593,4.97002,2012.1,2011.8,0.419147]
[1742734218391,5.78503,2012.2,2011.8,5.389757]
[1742734220421,10.7549,2012.2,2011.8,5.389757]
[1742734222291,4.97035,2012.0,2011.8,0.419147]
[1742734222496,4.97035,2012.0,2011.6,0.3163]
[1742734222703,4.97035,2012.0,2011.7,0.41952246]
[1742734222896,4.97035,2012.0,2011.6,0.3163]
[1742734223114,5.69622051,2012.0,2011.7,0.41952246]
[1742734223296,5.69622051,2012.0,2011.6,0.3163]
[1742734223499,4.97042,2011.9,2011.7,0.42032919]
[1742734223822,4.97042,2011.9,2011.6,0.3163]
[1742734224026,4.97042,2011.9,2011.8,0.42006123]
[1742734224228,6.11731405,2011.9,2011.7,0.42032919]
[1742734224418,6.11731405,2011.9,2011.8,0.42006123]
[1742734224819,6.11731405,2011.9,2011.6,0.3163]
[1742734225017,4.97042,2011.9,2011.8,0.42006123]
[1742734225219,4.97042,2011.9,2011.7,0.42032919]
[1742734225220,9.94108,2011.9,2011.7,0.42032919]
[1742734225413,9.94108,2011.9,2011.8,0.4202495]
[1742734225731,4.97077,2011.8,2011.5,26.279]
[1742734225919,4.97077,2011.8,2011.6,0.42078545]
[1742734226231,6.11770605,2011.8,2011.6,0.42078545]
[1742734228518,6.11770605,2011.8,2011.4,9.91494]
[1742734228705,4.97077,2011.8,2011.5,0.42105346]
[1742734232139,5.77057,2011.8,2011.5,0.42105346]
[1742734234345,0.7998,2011.8,2011.5,5.39244346]
[1742734236450,4.97048,2011.9,2011.5,5.39244346]
[1742734236832,6.49585051,2012.0,2011.6,4.97116]
[1742734237141,1.11228505,2011.9,2011.7,0.41898571]
[1742734237345,1.11228505,2011.9,2011.6,4.97113]
[1742734237551,7.50078495,2012.0,2011.7,0.41898571]
[1742734237716,4.97046,2011.9,2011.5,4.97134]
[1742734237915,4.97046,2011.9,2011.6,0.4192537]
[1742734241652,4.97046,2011.9,2011.6,5.3904037]
[1742734242047,6.49585051,2012.0,2011.6,10.3613637]
[1742734242251,6.49585051,2012.0,2011.6,5.3903037]
[1742734244064,11.46622051,2012.0,2011.6,5.3903037]
[1742734244266,1.24782334,2011.9,2011.6,5.3903037]
[1742734246874,11.46622051,2012.0,2011.6,5.3903037]
[1742734254974,4.97044,2011.9,2011.6,5.3903037]
[1742734255265,4.97044,2011.9,2011.6,0.4192537]
[1742734256764,5.74619,2011.8,2011.6,0.4192537]
[1742734257073,5.74619,2011.8,2011.4,9.91493]
[1742734257257,8.74619,2011.8,2011.7,0.41912022]
[1742734257432,4.97102,2011.7,2011.4,0.3163]
[1742734258778,4.97102,2011.7,2011.5,0.41965622]
[1742734261648,4.97116,2011.6,2011.5,0.41965622]
[1742734261975,5.77006,2011.6,2011.5,0.41965622]
[1742734262148,4.9716,2011.5,2011.2,26.285]
[1742734262353,4.97167,2011.4,2011.3,0.42038066]
[1742734263246,5.77057,2011.4,2011.3,0.42038066]
[1742734264784,6.844787,2011.4,2011.3,0.42038066]
[1742734266664,4.97202,2011.3,2010.9,9.91601]
[1742734267075,9.94411,2011.3,2010.9,9.91601]
[1742734267290,4.97202,2011.3,2010.9,9.91601]
[1742734268086,9.94414,2011.3,2010.9,9.91601]
[1742734268259,4.9722,2011.2,2010.9,9.91601]
[1742734268587,4.9722,2011.2,2010.8,9.60103]
[1742734268983,5.7711,2011.2,2010.7,0.3163]
[1742734269159,4.97252,2011.1,2010.7,9.91757]
[1742734270205,4.97252,2011.1,2010.7,14.89082]
[1742734270381,4.97252,2011.1,2010.8,4.97313]
[1742734271600,4.97252,2011.1,2010.7,9.91755]
[1742734271902,4.97252,2011.1,2010.7,14.89078]
[1742734272372,5.7711,2011.2,2010.8,4.97297]
[1742734272562,7.97197,2011.3,2010.9,4.97278]
[1742734272895,7.97197,2011.3,2010.9,5.28908]
[1742734273707,4.97216,2011.2,2010.9,0.3163]
[1742734273920,4.9724,2011.1,2011.0,0.42274563]
[1742734274328,5.80251,2011.2,2010.8,4.97307]
[1742734274528,5.80251,2011.2,2011.0,0.42274563]
[1742734274828,7.642754,2011.2,2011.1,0.42247749]
[1742734275320,7.642754,2011.2,2010.8,4.97307]
[1742734275497,5.80251,2011.2,2011.1,0.42395748]
[1742734275820,4.97241,2011.1,2010.8,4.97307]
[1742734276317,4.97241,2011.1,2010.7,9.60136]
[1742734277113,9.94499,2011.1,2010.7,9.60136]
[1742734277322,0.8303,2011.2,2010.9,4.97283]
[1742734277523,3.0,2011.3,2010.9,5.28913]
[1742734277710,7.97192,2011.3,2010.9,10.26189]
[1742734277902,7.97192,2011.3,2010.9,5.28906]
[1742734280224,12.94403,2011.3,2010.9,5.28906]
[1742734280423,4.97215,2011.2,2010.9,5.28906]
[1742734281728,4.97215,2011.2,2010.9,4.97276]
[1742734283124,7.97192,2011.3,2010.9,4.97276]
[1742734283623,0.7741,2011.2,2010.7,4.9443]
[1742734283806,4.97249,2011.1,2010.7,9.60127]
[1742734288631,4.97249,2011.1,2010.8,0.42497734]
[1742734300648,5.74626,2011.2,2010.9,4.97286]
[1742734301020,5.74626,2011.2,2010.9,5.39406065]
[1742734301219,5.74626,2011.2,2010.9,0.42120065]
[1742734301426,10.71859,2011.2,2010.8,5.28939]
[1742734301621,4.97252,2011.1,2010.9,0.42120065]
[1742734301831,4.97252,2011.1,2010.7,14.57464]
[1742734302027,4.97252,2011.1,2010.8,0.42136118]
[1742734302553,4.97252,2011.1,2010.8,5.39449118]
[1742734302724,5.74626,2011.2,2010.8,5.39449118]
[1742734302925,1.834617,2011.2,2010.9,5.28917]
[1742734303125,0.8116,2011.3,2011.0,4.97243]
[1742734303327,0.8116,2011.3,2011.0,5.39328172]
[1742734303646,5.78352,2011.3,2011.0,5.39328172]
[1742734303845,5.78352,2011.3,2011.0,0.42085172]
[1742734304054,12.22992148,2011.3,2011.0,0.42085172]
[1742734304257,4.97218,2011.2,2011.0,0.42085172]
[1742734305367,9.94454,2011.2,2011.0,0.42085172]
[1742734305533,9.94445,2011.2,2011.0,0.42085172]
[1742734305734,4.97218,2011.2,2010.8,4.97301]
[1742734305937,0.72580815,2011.1,2010.8,4.97301]
[1742734306136,4.97218,2011.2,2010.8,4.97301]
[1742734306564,4.97218,2011.2,2010.9,4.97287]
[1742734307269,4.97218,2011.2,2010.7,9.91751]
[1742734307469,4.97218,2011.2,2010.8,9.94595]
[1742734307775,4.97218,2011.2,2010.8,4.97293]
[1742734307937,7.25793148,2011.3,2010.9,4.97282]
[1742734308371,4.97218,2011.2,2010.9,4.97282]
[1742734308749,5.78363,2011.3,2011.0,4.97264]
[1742734308949,0.8116,2011.3,2011.0,4.97264]
[1742734309152,7.97166,2011.4,2011.0,4.97252]
[1742734309354,3.0,2011.4,2011.1,4.97234]
[1742734309562,6.7924248,2011.5,2011.3,4.97167]
[1742734309563,0.8332,2011.5,2011.3,4.97167]
[1742734309872,3.0,2011.5,2011.3,4.97167]
[1742734310169,3.0,2011.6,2011.3,4.97167]
[1742734310973,5.80426,2011.7,2011.3,4.97167]
[1742734311174,3.0,2011.6,2011.3,4.97167]
[1742734312574,3.0,2011.6,2011.3,9.94345]
[1742734313563,3.0,2011.6,2011.3,4.97167]
[1742734313761,0.8332,2011.7,2011.2,5.28843]
[1742734313964,7.9713,2011.6,2011.2,4.97213]
[1742734314573,14.42070001,2011.6,2011.2,4.97213]
[1742734314774,5.80463,2011.5,2011.2,4.627]
[1742734314975,4.97166,2011.4,2011.0,4.97255]
[1742734315283,4.97166,2011.4,2011.0,9.59955]
[1742734317368,4.97166,2011.4,2011.0,9.59948]
[1742734317572,4.97166,2011.4,2011.0,14.57202]
[1742734317772,4.97166,2011.4,2011.0,9.59948]
[1742734318272,9.9435,2011.4,2011.0,9.59948]
[1742734318651,9.9435,2011.4,2011.1,0.42017983]
[1742734318849,4.97195,2011.3,2011.1,0.42017983]
[1742734319156,0.8332,2011.2,2011.1,0.42017983]
[1742734319351,5.80548,2011.2,2010.8,9.60001]
[1742734319552,5.80548,2011.2,2011.1,0.42017983]
[1742734319752,5.80548,2011.2,2010.8,14.57299]
[1742734319983,5.80548,2011.2,2011.1,0.42007215]
[1742734320277,5.80548,2011.2,2010.8,14.57299]
[1742734320480,5.80548,2011.2,2010.8,9.59998]
[1742734320701,5.80548,2011.2,2010.9,0.42060847]
[1742734321003,5.80548,2011.2,2010.8,9.59998]
[1742734321163,4.97252,2011.1,2011.0,0.4203403]
[1742734321367,4.97252,2011.1,2010.8,4.97313]
[1742734321566,4.97252,2011.1,2011.0,0.4203403]
[1742734321885,5.80538,2011.2,2010.8,4.97313]
[1742734322191,10.77771,2011.2,2011.0,0.4203403]
[1742734322365,12.0080284,2011.2,2010.9,0.42060847]
[1742734322560,4.97242,2011.1,2010.7,9.60031]
[1742734322785,4.97242,2011.1,2011.0,0.4203403]
[1742734322985,4.97242,2011.1,2010.7,9.60031]
[1742734323279,4.97242,2011.1,2011.0,0.4203403]
[1742734323486,5.77556465,2011.1,2011.0,0.4203403]
[1742734323851,5.77556465,2011.1,2010.7,14.57354]
[1742734324050,4.97242,2011.1,2011.0,0.4203403]
[1742734324564,4.97242,2011.1,2010.7,9.60023]
[1742734324763,4.97242,2011.1,2011.0,0.4203403]
[1742734324975,4.97242,2011.1,2010.7,9.60023]
[1742734325176,4.97242,2011.1,2011.0,0.42101322]
[1742734325375,6.0502,2011.1,2010.7,9.60023]
[1742734325575,4.97242,2011.1,2011.0,0.42101322]
[1742734325787,0.7728,2011.0,2010.7,4.97323]
[1742734326583,5.74546,2011.0,2010.6,4.97363]
[1742734326792,5.74546,2011.0,2010.6,9.60063]
[1742734327690,4.97291,2010.9,2010.6,4.627]
[1742734327859,4.97298,2010.9,2010.6,4.627]
[1742734328691,8.74552,2011.0,2010.6,9.60061]
[1742734331265,13.71837,2011.0,2010.6,9.60061]
[1742734331466,8.74552,2011.0,2010.6,9.60061]
[1742734332165,8.74552,2011.0,2010.6,14.5741]
[1742734332499,8.74552,2011.0,2010.6,9.60049]
[1742734332793,8.74552,2011.0,2010.6,14.574]
[1742734333401,8.74552,2011.0,2010.6,9.60049]
[1742734333791,8.74552,2011.0,2010.7,0.39152676]
[1742734334201,8.74552,2011.0,2010.7,5.36488676]
[1742734334366,8.74552,2011.0,2010.7,0.39152676]
[1742734338117,3.7728,2011.0,2010.7,5.36477676]
[1742734338422,3.0,2011.0,2010.8,4.97309]
[1742734338778,3.0,2011.0,2010.9,0.39099033]
[1742734339023,3.0,2011.0,2010.7,5.28961]
[1742734339238,3.0,2011.0,2010.9,0.39099033]
[1742734339552,3.0,2011.1,2010.9,0.39099033]
[1742734339841,7.97243,2011.1,2010.9,0.39099033]
[1742734340010,7.97243,2011.1,2010.8,4.97304]
[1742734340749,12.94502,2011.1,2010.7,5.28962]
[1742734340945,4.97266,2011.0,2010.7,5.28962]
[1742734341154,5.77241,2010.9,2010.6,4.627]
[1742734342537,5.77241,2010.9,2010.6,9.60063]
[1742734342846,5.77241,2010.9,2010.6,4.627]
[1742734343754,4.97316,2010.8,2010.6,4.627]
[1742734344725,4.97316,2010.8,2010.5,4.97386]
[1742734345025,4.97316,2010.8,2010.4,30.923]
[1742734345026,5.7729,2010.7,2010.4,31.2701]
[1742734345246,5.7729,2010.7,2010.4,26.296]
[1742734347226,5.7729,2010.7,2010.4,31.27008]
[1742734347427,0.7995,2010.7,2010.4,31.27]
[1742734347627,0.7995,2010.7,2010.5,4.97386]
[1742734347855,0.7995,2010.7,2010.4,36.24402]
[1742734348445,0.7995,2010.7,2010.4,36.24395]
[1742734348841,5.77241,2010.9,2010.5,10.34016491]
[1742734349266,5.77241,2010.9,2010.5,5.36634491]
[1742734349438,1.47572589,2011.1,2010.7,4.97339]
[1742734349639,1.47572589,2011.1,2010.7,4.97318]
[1742734349640,3.0,2011.1,2010.7,4.97318]
[1742734349851,3.0,2011.1,2010.8,5.36482015]
[1742734350433,3.0,2011.1,2010.9,4.97288]
[1742734350863,3.0,2011.1,2011.0,0.39163772]
[1742734351556,3.0,2011.1,2010.8,4.97307]
[1742734351738,3.0,2011.1,2011.0,0.39163772]
[1742734351939,4.47521365,2011.1,2010.8,4.97307]
[1742734352135,3.0,2011.1,2011.0,0.39163772]
[1742734352335,3.0,2011.1,2010.8,4.97307]
[1742734352638,3.0,2011.1,2011.0,0.39163772]
[1742734352839,0.7995,2011.2,2010.9,5.3647659]
[1742734353055,3.0,2011.2,2011.0,0.39163772]
[1742734355485,4.12732805,2011.2,2011.0,0.39163772]
[1742734355775,9.09958805,2011.2,2010.8,4.97306]
[1742734356073,7.97226,2011.2,2011.1,0.39118108]
[1742734356573,7.97226,2011.2,2010.8,4.97306]
[1742734356749,7.97226,2011.2,2011.1,0.39118108]
[1742734356952,8.98048649,2011.3,2010.8,4.97294]
[1742734357249,8.98048649,2011.3,2011.1,0.39118108]
[1742734357583,9.72066226,2011.3,2011.2,0.39091296]
[1742734357781,9.72066226,2011.3,2010.9,4.97279]
[1742734357988,4.00854649,2011.3,2011.2,0.39091296]
[1742734358281,0.7673,2011.6,2011.2,4.97201]
[1742734358467,3.7673,2011.6,2011.2,5.36292296]
[1742734358772,8.73848,2011.6,2011.2,5.36292296]
[1742734359154,0.7673,2011.6,2011.2,5.36292296]
[1742734359347,4.97101,2011.7,2011.3,5.28808]
[1742734359554,4.97101,2011.7,2011.3,5.6776478]
[1742734359748,3.0,2011.6,2011.3,5.6776478]
[1742734364977,3.0,2011.6,2011.3,0.7058678]
[1742734365878,7.97117,2011.6,2011.3,0.7058678]
[1742734366066,7.97117,2011.6,2011.3,0.3895678]
[1742734366778,9.903564,2011.6,2011.3,0.3895678]
[1742734367285,5.78852,2011.5,2011.3,0.3895678]
[1742734367687,5.78852,2011.5,2011.1,5.28868]
[1742734367977,4.97204,2011.3,2010.8,4.97302]
[1742734368153,7.97223,2011.2,2010.8,4.97302]
[1742734368352,12.94457,2011.2,2010.8,4.97302]
[1742734369088,12.94458,2011.2,2010.8,4.97302]
[1742734369271,4.9724,2011.1,2010.8,4.97302]
[1742734371456,7.97223,2011.2,2010.8,4.97302]
[1742734371651,12.94458,2011.2,2010.8,4.97302]
[1742734372855,7.97223,2011.2,2010.8,4.97302]
[1742734373284,12.94459,2011.2,2010.8,4.97302]
[1742734373466,7.97223,2011.2,2010.8,4.97302]
[1742734374387,12.94457,2011.2,2010.8,4.97302]
[1742734374582,7.97223,2011.2,2010.8,4.97302]
[1742734374789,4.9724,2011.1,2010.8,4.97302]
[1742734375010,7.97229,2011.2,2010.8,4.97302]
[1742734375285,12.94464,2011.2,2010.8,4.97302]
[1742734375461,4.9724,2011.1,2010.8,4.97302]
[1742734376592,12.94464,2011.2,2010.9,0.3163]
[1742734377996,7.97229,2011.2,2010.9,0.3163]
[1742734378668,12.94467,2011.2,2010.9,0.3163]
[1742734378858,12.94467,2011.2,2011.0,0.38975305]
[1742734379565,7.97229,2011.2,2011.0,0.38975305]
[1742734379761,4.97193,2011.3,2011.0,0.38975305]
[1742734380164,0.7563,2011.0,2010.2,0.3163]
[1742734380384,4.97353,2010.7,2010.3,4.97413]
[1742734380766,5.72983,2010.7,2010.3,4.97413]
[1742734381227,10.70341,2010.7,2010.3,4.97413]
[1742734381380,4.97367,2010.6,2010.3,4.97413]
[1742734381577,4.97367,2010.6,2010.2,5.29087]
[1742734381782,4.97367,2010.6,2010.2,10.26532]
[1742734382895,4.97367,2010.6,2010.2,5.29075]
[1742734383207,3.0,2010.8,2010.4,5.29036]
[1742734383394,7.97322,2010.8,2010.4,5.29036]
[1742734383583,7.97322,2010.8,2010.4,10.26433]
[1742734383971,3.0,2010.8,2010.5,4.97384]
[1742734384202,7.97315,2010.8,2010.5,4.97384]
[1742734384802,7.97315,2010.8,2010.4,5.29036]
[1742734384999,4.97343,2010.7,2010.3,9.63135]
[1742734385169,4.97343,2010.7,2010.3,9.63125]
[1742734386003,0.7609,2010.6,2010.1,0.01]
[1742734386197,4.97447,2010.3,2010.1,0.01]
[1742734386395,9.94904,2010.3,2010.1,0.01]
[1742734386593,4.97462,2010.2,2010.1,0.01]
[1742734387885,4.97462,2010.2,2010.1,0.22312672]
[1742734388087,4.97462,2010.2,2010.1,0.01]
[1742734388297,4.97462,2010.2,2010.1,0.22360692]
[1742734388476,4.97462,2010.2,2010.1,0.01]
[1742734388677,4.97462,2010.2,2010.1,0.22360692]
[1742734388912,4.97462,2010.2,2010.1,0.01]
[1742734389111,4.97462,2010.2,2010.1,0.22360692]
[1742734391283,6.543035,2010.2,2010.1,0.22360692]
[1742734393283,10.70996,2010.3,2010.1,0.22360692]
[1742734393485,10.70986,2010.3,2010.1,0.22360692]
[1742734393985,5.73537,2010.3,2010.1,0.22360692]
[1742734395813,4.97447,2010.3,2010.1,0.22360692]
[1742734396989,4.97415,2010.4,2010.1,0.22360692]
[1742734397698,3.0,2010.4,2010.1,5.19830692]
[1742734397902,5.74502,2010.7,2010.3,5.29053]
[1742734398116,5.74502,2010.7,2010.3,0.3163]
[1742734398314,4.97364,2010.6,2010.4,0.21306866]
[1742734400089,4.97388,2010.5,2010.4,0.21306866]
[1742734400286,4.97388,2010.5,2010.1,4.98486]
[1742734400515,4.97388,2010.5,2010.4,0.21386883]
[1742734400715,6.045782,2010.5,2010.1,4.98486]
[1742734400919,4.97388,2010.5,2010.4,0.21322851]
[1742734401219,4.97423,2010.4,2010.1,0.01]
[1742734401414,4.97388,2010.5,2010.1,4.98485]
[1742734403495,4.97388,2010.5,2010.1,4.98469]
[1742734404426,4.97388,2010.5,2010.2,4.97462]
[1742734406432,0.7715,2010.6,2010.3,4.97427]
[1742734406635,5.74524,2010.6,2010.2,4.97462]
[1742734407022,10.71906,2010.6,2010.2,4.97462]
[1742734407534,5.74524,2010.6,2010.2,4.97462]
[1742734408831,5.74524,2010.6,2010.3,0.21349684]
[1742734410347,0.7715,2010.6,2010.3,5.18785684]
[1742734411742,5.74515,2010.6,2010.3,5.18785684]
[1742734412315,5.74515,2010.6,2010.3,0.21349684]
[1742734413046,5.74515,2010.6,2010.3,5.18782684]
[1742734413416,0.7715,2010.6,2010.3,5.18782684]
[1742734414017,0.7715,2010.6,2010.4,4.97392]
[1742734414224,5.72614,2010.8,2010.5,4.97382]
[1742734414530,4.97341,2010.7,2010.5,0.21272015]
[1742734415342,9.94702,2010.7,2010.5,0.21272015]
[1742734415656,4.97341,2010.7,2010.3,5.29052]
[1742734415946,4.97341,2010.7,2010.6,0.21245187]
[1742734416247,5.72673,2010.6,2010.2,4.97453]
[1742734416416,6.99068389,2010.6,2010.2,9.94907]
[1742734416923,6.99068389,2010.6,2010.2,4.97453]
[1742734417152,6.99068389,2010.6,2010.2,4.97446]
[1742734417359,4.97401,2010.5,2010.1,4.98477]
[1742734418152,4.97401,2010.5,2010.1,9.95948]
[1742734418762,4.97401,2010.5,2010.1,4.98471]
[1742734418951,6.17047039,2010.5,2010.1,4.98471]
[1742734419468,11.14456039,2010.5,2010.1,4.98471]
[1742734419763,4.97418,2010.4,2010.1,0.01]
[1742734419919,0.753,2010.3,2010.1,0.01]
[1742734421028,0.753,2010.3,2010.1,4.98482]
[1742734421266,11.89757039,2010.5,2010.1,4.98482]
[1742734421669,6.92347039,2010.5,2010.1,4.98482]
[1742734422175,6.92347039,2010.5,2010.1,9.95953]
[1742734422325,5.72701,2010.5,2010.1,4.98471]
[1742734422525,5.72701,2010.5,2010.2,4.97459]
[1742734422726,0.753,2011.0,2010.3,5.0053]
[1742734422935,0.753,2011.0,2010.6,4.97352]
[1742734423137,3.753,2011.0,2010.7,4.97326]
[1742734423767,3.753,2011.0,2010.8,0.2118354]
[1742734423966,5.122759,2011.0,2010.8,0.2118354]
[1742734427039,10.095449,2011.0,2010.8,0.2118354]
[1742734427242,10.095449,2011.0,2010.6,4.97352]
[1742734427743,10.095449,2011.0,2010.7,0.21210363]
[1742734428992,5.122759,2011.0,2010.7,0.21210363]
[1742734429295,3.753,2011.0,2010.7,5.18547363]
[1742734429494,3.0,2011.0,2010.7,5.18547363]
[1742734430795,3.0,2011.0,2010.7,0.21210363]
[1742734432179,0.7796,2010.9,2010.7,0.21210363]
[1742734436984,7.97274,2011.0,2010.7,0.21210363]
[1742734437148,9.4423586,2011.0,2010.7,0.21210363]
[1742734438583,4.4696186,2011.0,2010.7,0.21210363]
[1742734438775,4.4696186,2011.0,2010.7,5.50178363]
[1742734440378,9.4422686,2011.0,2010.7,0.52840363]
[1742734440694,3.7796,2011.1,2010.7,0.52840363]
[1742734440882,3.0,2011.1,2010.8,4.97293]
[1742734441194,3.0,2011.1,2010.9,0.21060695]
[1742734441398,3.0,2011.1,2010.8,4.97293]
[1742734441583,3.0,2011.1,2010.9,0.21060695]
[1742734441912,3.0,2011.1,2010.8,4.97293]
[1742734442069,3.0,2011.1,2011.0,0.21033878]
[1742734442070,10.2439036,2011.1,2011.0,0.21033878]
[1742734442264,3.0,2010.8,2010.4,36.24706]
[1742734442470,3.0,2010.8,2010.5,0.21167991]
[1742734443715,7.9732,2010.8,2010.5,0.21167991]
[1742734443883,12.94654,2010.8,2010.5,0.21167991]
[1742734444199,4.97343,2010.7,2010.5,0.21167991]
[1742734445807,4.97343,2010.7,2010.3,9.97659]
[1742734445991,4.97343,2010.7,2010.4,0.21154822]
[1742734446789,8.7709,2010.8,2010.4,0.21154822]
[1742734446989,13.74427,2010.8,2010.4,5.18557822]
[1742734447203,8.7709,2010.8,2010.4,5.18557822]
[1742734448287,13.74423,2010.8,2010.4,5.18557822]
[1742734448482,4.97349,2010.7,2010.4,0.21154822]
[1742734450079,4.97365,2010.6,2010.4,0.21154822]
[1742734450483,4.97365,2010.6,2010.2,9.65761]
[1742734450826,4.97365,2010.6,2010.3,0.21157651]
[1742734453142,5.77135,2010.6,2010.3,0.21157651]
[1742734453297,4.97404,2010.5,2010.3,0.21157651]
[1742734453639,4.97421,2010.4,2010.1,26.309]